bitfinex/quotes_ETHUSD_20230904
["timestamp","ask_amount","ask_price","bid_price","bid_amount"]
[1693840012931,0.52093571,1628.2,1628.1,12.13038793]
[1693840013126,0.52093571,1628.2,1628.1,18.27250793]
[1693840013361,0.52093571,1628.2,1628.1,18.27755905]
[1693840013537,0.52093571,1628.2,1628.1,12.13545217]
[1693840013859,0.52093571,1628.2,1628.1,9.4764989]
[1693840015705,0.52093571,1628.2,1628.1,24.9450569]
[1693840015863,0.52093571,1628.2,1628.1,26.3610569]
[1693840016085,0.44167505,1628.3,1628.1,27.96085857]
[1693840016242,12.28086,1628.6,1628.2,15.07958586]
[1693840016445,14.4295812,1628.6,1628.4,2.25226767]
[1693840017424,14.4295812,1628.6,1628.5,1.93066184]
[1693840021383,14.4295812,1628.6,1628.4,1.93066184]
[1693840022670,14.4295812,1628.6,1628.5,1.60959262]
[1693840024205,14.4295812,1628.6,1628.5,2.89747141]
[1693840024981,14.95069274,1628.6,1628.5,2.89747141]
[1693840025208,14.95069274,1628.6,1628.5,1.28787879]
[1693840026720,14.95069274,1628.6,1628.5,2.25393107]
[1693840027311,14.95069274,1628.6,1628.5,0.96605228]
[1693840028825,16.36669274,1628.6,1628.5,0.64398756]
[1693840029028,22.50722274,1628.6,1628.5,0.64398756]
[1693840031488,22.50722274,1628.6,1628.4,0.64398756]
[1693840032026,22.83786,1628.5,1628.3,3.19218756]
[1693840032527,14.43093315,1628.4,1628.3,4.15823984]
[1693840032887,14.43093315,1628.4,1628.3,3.19218756]
[1693840033086,14.43093315,1628.4,1628.3,4.15823984]
[1693840033313,20.57192315,1628.4,1628.3,4.15823984]
[1693840033520,26.63893741,1628.4,1628.3,1.61003984]
[1693840033708,39.47070882,1628.4,1628.1,0.1]
[1693840033887,24.567,1628.2,1628.1,0.1]
[1693840034088,28.11401426,1628.2,1628.1,0.1]
[1693840034321,29.53001426,1628.2,1628.1,0.1]
[1693840034525,32.53001426,1628.2,1628.1,0.1]
[1693840034833,1.30549349,1628.0,1627.9,4.77503107]
[1693840034987,1.30549349,1628.0,1627.9,3.48715228]
[1693840034988,19.73299349,1628.0,1627.9,3.48715228]
[1693840035397,22.19097449,1628.0,1627.9,3.48715228]
[1693840039735,22.71090753,1628.0,1627.9,3.48715228]
[1693840040968,16.56840753,1628.0,1627.9,3.48715228]
[1693840041200,10.42590753,1628.0,1627.9,3.48715228]
[1693840041481,10.42590753,1628.0,1627.9,3.80897879]
[1693840042044,16.56840753,1628.0,1627.9,3.80897879]
[1693840042647,10.42590753,1628.0,1627.9,3.80897879]
[1693840042847,7.96792653,1628.0,1627.9,3.80897879]
[1693840043171,14.11042653,1628.0,1627.9,3.80897879]
[1693840043665,14.11042653,1628.0,1627.9,4.77395659]
[1693840044371,14.11042653,1628.0,1627.9,3.80897879]
[1693840046169,20.25292653,1628.0,1627.9,3.80897879]
[1693840047272,14.11042653,1628.0,1627.9,3.80897879]
[1693840047476,7.96792653,1628.0,1627.9,3.80897879]
[1693840048175,14.11042653,1628.0,1627.9,5.41699448]
[1693840049172,14.59811385,1628.0,1627.9,5.41699448]
[1693840049530,14.59811385,1628.0,1627.9,3.80897879]
[1693840050035,14.59811385,1628.0,1627.9,5.41699448]
[1693840053806,20.74061385,1628.0,1627.9,3.80897879]
[1693840054698,22.15661385,1628.0,1627.9,3.80897879]
[1693840054879,21.66892653,1628.0,1627.9,3.80897879]
[1693840056482,21.66892653,1628.0,1627.9,1.28787879]
[1693840059302,21.66892653,1628.0,1627.9,2.25212902]
[1693840060318,21.66892653,1628.0,1627.9,1.28787879]
[1693840063895,21.66892653,1628.0,1627.9,2.89589448]
[1693840064093,21.66892653,1628.0,1627.9,1.28787879]
[1693840064650,21.66892653,1628.0,1627.9,2.89589448]
[1693840065746,21.66892653,1628.0,1627.9,1.60801569]
[1693840068142,14.11042653,1628.0,1627.9,1.60801569]
[1693840068309,14.11042653,1628.0,1627.8,2.02961883]
[1693840069343,20.25292653,1628.0,1627.8,2.02961883]
[1693840071247,20.25292653,1628.0,1627.9,1.92961883]
[1693840071552,25.21594079,1628.0,1627.9,1.92961883]
[1693840071843,21.66892653,1628.0,1627.8,2.02961883]
[1693840074006,21.66892653,1628.0,1627.9,1.92961883]
[1693840079164,21.66892653,1628.0,1627.8,2.35122197]
[1693840079660,21.66892653,1628.0,1627.9,1.93447026]
[1693840083170,21.66892653,1628.0,1627.8,2.03447026]
[1693840085167,21.66892653,1628.0,1627.9,1.61190002]
[1693840085332,24.73594079,1628.0,1627.9,1.61190002]
[1693840085532,25.21594079,1628.0,1627.9,1.61190002]
[1693840086277,0.43784508,1627.8,1627.7,4.54317026]
[1693840086485,18.86762508,1627.8,1627.7,4.54317026]
[1693840086837,19.38481932,1627.8,1627.7,4.54317026]
[1693840088485,19.38481932,1627.8,1627.7,2.6087]
[1693840089386,13.24155932,1627.8,1627.7,2.6087]
[1693840090083,7.09829932,1627.8,1627.7,2.6087]
[1693840090488,0.95503932,1627.8,1627.7,2.6087]
[1693840090659,0.95503932,1627.8,1627.7,10.68680026]
[1693840091153,0.95503932,1627.8,1627.7,4.54317026]
[1693840091477,6.58110508,1627.8,1627.7,4.54317026]
[1693840091881,7.09825016,1627.8,1627.7,4.54317026]
[1693840092245,7.09825016,1627.8,1627.7,24.82567629]
[1693840092246,0.95499016,1627.8,1627.7,24.82567629]
[1693840092545,0.95499016,1627.8,1627.7,25.90811059]
[1693840092740,0.51714508,1627.8,1627.7,28.15933256]
[1693840093139,16.89087607,1628.2,1627.7,28.15933256]
[1693840093140,10.74881607,1628.2,1627.7,31.22634682]
[1693840093389,10.74881607,1628.2,1628.1,2.25653596]
[1693840093904,10.74876607,1628.2,1628.1,2.25653596]
[1693840094247,4.60701607,1628.2,1628.1,1.28944912]
[1693840094444,4.60701607,1628.2,1628.1,2.25641706]
[1693840094445,8.29096707,1628.2,1628.1,2.25641706]
[1693840094785,8.29096707,1628.2,1628.1,1.28944912]
[1693840095372,8.29096707,1628.2,1628.1,2.25636707]
[1693840095969,8.29096707,1628.2,1628.1,1.28944912]
[1693840096357,8.29096707,1628.2,1628.1,2.25631139]
[1693840096562,8.29096707,1628.2,1628.1,1.28944912]
[1693840097363,8.29096707,1628.2,1628.1,3.07197962]
[1693840097580,2.14921707,1628.2,1628.1,3.07197962]
[1693840098014,2.14921707,1628.2,1628.1,21.82058641]
[1693840098311,2.14921707,1628.2,1628.1,20.2088905]
[1693840098609,9.51960303,1628.4,1628.1,15.67748807]
[1693840098815,11.66859389,1628.4,1628.3,0.96643052]
[1693840099112,17.80988389,1628.4,1628.3,1.61072339]
[1693840099611,17.80988389,1628.4,1628.3,0.64429287]
[1693840099806,18.55355265,1628.4,1628.3,0.64429287]
[1693840102822,26.11084265,1628.4,1628.2,1.61072339]
[1693840103022,1.416,1628.3,1628.1,0.64429287]
[1693840103318,12.2835,1628.2,1628.1,0.64429287]
[1693840103699,12.2835,1628.2,1628.0,3.60593052]
[1693840103700,1.50505618,1628.1,1628.0,3.60593052]
[1693840104127,1.50505618,1628.1,1628.0,3.92807403]
[1693840104491,1.50505618,1628.1,1628.0,11.03648389]
[1693840104889,7.64717618,1628.1,1628.0,4.89398389]
[1693840105097,13.78929618,1628.1,1628.0,3.60540986]
[1693840105926,19.93141618,1628.1,1628.0,0.96590986]
[1693840106231,13.78929618,1628.1,1628.0,0.96590986]
[1693840106434,1.50505618,1628.1,1628.0,2.25448389]
[1693840106648,1.50505618,1628.1,1628.0,7.43107403]
[1693840106789,1.50505618,1628.1,1628.0,1.28857403]
[1693840107436,13.78929618,1628.1,1628.0,1.28857403]
[1693840107600,19.93141618,1628.1,1628.0,1.28857403]
[1693840107799,19.93141618,1628.1,1628.0,2.25444935]
[1693840107993,19.93141618,1628.1,1628.0,0.96587532]
[1693840113952,21.34741618,1628.1,1628.0,0.64397899]
[1693840114241,21.34741618,1628.1,1627.9,1.60985431]
[1693840114539,1.99500326,1628.0,1627.9,0.64397899]
[1693840114741,20.42250326,1628.0,1627.9,0.64397899]
[1693840115943,20.42250326,1628.0,1627.9,1.60985431]
[1693840116239,19.00650326,1628.0,1627.9,0.64397899]
[1693840116454,19.00650326,1628.0,1627.9,1.60985431]
[1693840117450,20.42250326,1628.0,1627.9,0.64397899]
[1693840118942,23.96951752,1628.0,1627.9,0.64397899]
[1693840119142,23.96951752,1628.0,1627.7,1.70985431]
[1693840119143,37.52801752,1628.0,1627.7,1.70985431]
[1693840119349,25.98904,1627.8,1627.7,0.74397899]
[1693840119542,32.05605426,1627.8,1627.7,0.1]
[1693840119716,32.53605426,1627.8,1627.7,0.1]
[1693840120347,18.43203,1627.6,1627.5,2.01418013]
[1693840120552,19.84803,1627.6,1627.5,2.01418013]
[1693840120720,18.56913116,1627.5,1627.4,4.21601757]
[1693840120917,18.56913116,1627.5,1627.4,2.6053]
[1693840121117,19.98513116,1627.5,1627.4,4.21601757]
[1693840121318,19.98513116,1627.5,1627.4,2.6053]
[1693840121522,20.46513116,1627.5,1627.3,1.61071757]
[1693840121717,19.98513116,1627.5,1627.3,1.61071757]
[1693840122657,23.05214542,1627.5,1627.3,1.61071757]
[1693840122827,1.416,1627.4,1627.3,1.61071757]
[1693840123018,19.85031,1627.4,1627.2,4.33571757]
[1693840123218,21.50132426,1627.4,1627.2,1.71071757]
[1693840123420,4.96301426,1627.3,1627.2,0.1]
[1693840123631,23.39843426,1627.3,1627.2,0.1]
[1693840124152,20.25329426,1627.3,1627.2,0.1]
[1693840124327,0.92177226,1627.2,1627.0,1.59408931]
[1693840124657,6.1459,1627.1,1627.0,1.59408931]
[1693840124874,0.55671263,1627.0,1626.9,2.30122197]
[1693840125229,12.29206,1627.1,1626.9,2.30122197]
[1693840125449,6.1459,1627.1,1626.9,2.30122197]
[1693840125660,21.50499426,1627.1,1626.9,0.05]
[1693840125855,3.0,1626.7,1626.6,2.35122197]
[1693840126165,21.50924426,1626.7,1626.6,0.1]
[1693840126383,12.29482,1626.7,1626.5,1.61960712]
[1693840126669,2.13946299,1626.5,1626.3,1.51522197]
[1693840126833,4.48301426,1626.4,1626.3,1.60576738]
[1693840127016,23.9569242,1626.4,1626.3,1.60576738]
[1693840127216,23.9569242,1626.4,1626.2,0.1]
[1693840127217,7.56454,1626.4,1626.2,0.1]
[1693840127422,18.36409426,1626.4,1626.2,1.60590301]
[1693840127660,3.0,1626.2,1626.1,0.74957514]
[1693840127910,3.0,1624.8,1624.7,4.77785813]
[1693840128198,3.0,1624.8,1624.5,2.65755816]
[1693840128199,15.5646,1624.8,1624.5,2.65755816]
[1693840128401,15.5646,1624.8,1624.1,0.18981521]
[1693840128402,12.31153,1624.5,1624.2,2.65755816]
[1693840128604,12.31153,1624.5,1624.1,0.18981521]
[1693840128605,0.78029363,1624.4,1623.7,2.01291275]
[1693840128752,0.78029363,1624.4,1622.6,3.28706176]
[1693840128753,0.64300798,1623.4,1622.6,3.28706176]
[1693840128969,0.64300798,1623.4,1622.6,5.67870618]
[1693840128970,1.416,1622.9,1622.6,5.67870618]
[1693840129201,0.64300798,1623.4,1622.6,6.95905262]
[1693840129202,18.48246,1623.2,1622.6,6.95905262]
[1693840129405,0.64300798,1623.4,1623.3,5.35]
[1693840129406,6.16008,1623.4,1623.3,5.35]
[1693840129547,8.49723845,1624.0,1623.9,5.35]
[1693840129548,7.57365,1624.0,1623.9,5.35]
[1693840129748,7.57365,1624.0,1623.5,3.0]
[1693840129749,18.47289,1624.0,1622.9,5.35]
[1693840129983,0.92376286,1623.7,1623.5,5.35]
[1693840130186,0.48,1623.9,1623.5,5.35]
[1693840130187,0.52718939,1624.0,1623.8,8.3]
[1693840130403,6.15574,1624.5,1624.4,5.3]
[1693840130557,0.18332655,1625.2,1624.7,5.3]
[1693840130881,12.3073,1625.1,1624.9,5.3]
[1693840131104,6.15278,1625.3,1625.0,5.0358294]
[1693840131307,1.26453823,1625.7,1625.5,8.3]
[1693840131308,2.04826911,1625.7,1625.5,8.3]
[1693840131606,0.60502454,1625.8,1625.7,8.3]
[1693840131767,0.60502454,1625.8,1625.5,5.3]
[1693840131768,12.90708454,1625.8,1625.5,5.3]
[1693840131968,12.90708454,1625.8,1625.6,4.37726378]
[1693840132310,1.416,1625.7,1625.6,4.37726378]
[1693840132604,0.60502454,1625.8,1625.7,3.0]
[1693840132910,0.60502454,1625.8,1625.6,4.37726378]
[1693840133206,0.60502454,1625.8,1625.6,3.45452756]
[1693840133207,6.75583454,1625.8,1625.6,3.45452756]
[1693840133407,0.60502454,1625.8,1625.6,3.45452756]
[1693840133987,0.60502454,1625.8,1625.5,9.15181]
[1693840133988,2.84,1625.7,1625.3,2.5318481]
[1693840134169,2.84,1625.7,1625.5,2.5318481]
[1693840134170,0.55673074,1625.7,1625.5,2.5318481]
[1693840134422,0.92267946,1625.6,1625.5,2.5318481]
[1693840134557,0.92267946,1625.6,1625.3,2.5318481]
[1693840134558,6.15195,1625.5,1625.3,2.5318481]
[1693840134759,0.92279299,1625.4,1625.3,2.5318481]
[1693840135014,4.47952373,1625.4,1625.3,2.5318481]
[1693840135309,10.07512299,1625.4,1625.3,2.5318481]
[1693840135511,3.92279299,1625.4,1625.3,2.5318481]
[1693840135712,0.92279299,1625.4,1625.3,5.5318481]
[1693840136006,0.60502454,1625.8,1625.3,6.08503291]
[1693840136223,0.60502454,1625.8,1625.7,1.60916864]
[1693840136559,1.24644211,1625.8,1625.7,1.60916864]
[1693840136863,1.24644211,1625.8,1625.7,0.68648918]
[1693840137087,0.23619028,1625.6,1625.2,3.0]
[1693840137297,1.24644211,1625.8,1625.2,3.0]
[1693840137519,1.73083528,1625.8,1625.2,3.46597]
[1693840137656,0.92267946,1625.6,1625.2,3.0]
[1693840137859,0.92267946,1625.6,1625.0,5.674]
[1693840138174,3.552,1625.4,1624.6,3.0]
[1693840138386,0.55673074,1625.3,1624.2,3.0]
[1693840138588,0.55673074,1625.3,1624.0,0.1]
[1693840138589,0.92307692,1624.9,1624.5,3.0]
[1693840138959,4.67734855,1625.3,1624.2,3.0]
[1693840139155,0.92324737,1624.6,1624.2,3.0]
[1693840140011,0.92324737,1624.6,1624.5,3.0]
[1693840140216,0.92324737,1624.6,1624.2,3.0]
[1693840140564,0.92324737,1624.6,1624.0,0.1]
[1693840140565,0.92324737,1624.6,1624.5,3.0]
[1693840141514,0.92324737,1624.6,1624.0,0.1]
[1693840141515,0.48,1624.6,1624.3,3.0]
[1693840141713,1.4033042,1624.5,1624.0,0.1]
[1693840141862,4.9553042,1624.5,1624.0,0.1]
[1693840142067,3.549995,1624.2,1624.0,0.1]
[1693840142273,13.01773074,1624.4,1623.3,3.0]
[1693840142274,0.92364532,1623.9,1623.3,3.0]
[1693840142585,4.032,1623.8,1623.3,3.0]
[1693840142764,3.0,1623.7,1623.3,2.8]
[1693840142978,1.12364532,1623.9,1623.8,2.8]
[1693840142979,0.92364532,1623.9,1623.8,2.8]
[1693840143662,0.92364532,1623.9,1623.4,9.0]
[1693840143663,0.56612638,1624.6,1624.1,2.8]
[1693840144018,3.752,1624.8,1623.8,2.8]
[1693840144019,0.92336103,1624.4,1623.8,2.8]
[1693840144269,0.92336103,1624.4,1624.3,2.8]
[1693840144391,2.462893,1624.9,1624.3,2.8]
[1693840144591,2.462893,1624.9,1624.3,1.87658212]
[1693840144592,0.55563625,1624.4,1624.3,1.87658212]
[1693840145051,2.462893,1624.9,1624.3,1.87658212]
[1693840145388,2.04660843,1625.3,1624.8,0.95339157]
[1693840145590,0.48118002,1625.4,1624.8,0.95339157]
[1693840145793,2.04660843,1625.3,1624.8,0.95339157]
[1693840146338,2.96976383,1625.3,1624.8,0.03023617]
[1693840146544,2.96976383,1625.6,1624.8,0.03023617]
[1693840146782,3.552,1625.7,1624.8,0.03023617]
[1693840146783,0.92296333,1625.1,1624.8,0.03023617]
[1693840147122,2.96976383,1625.5,1624.8,0.03023617]
[1693840147350,0.92296366,1625.1,1624.8,0.03023617]
[1693840148063,0.92296366,1625.1,1624.6,0.03023617]
[1693840148379,0.92296366,1625.1,1624.8,0.03023617]
[1693840148380,3.0,1625.1,1624.8,0.03023617]
[1693840148682,0.92307692,1624.9,1624.8,0.03023617]
[1693840150332,2.96976383,1625.6,1624.8,0.03023617]
[1693840150541,3.0,1625.5,1624.8,3.09725043]
[1693840150888,0.92274,1625.5,1625.3,0.03023617]
[1693840151797,2.96976383,1625.3,1624.9,2.7096]
[1693840151985,0.92274,1625.5,1624.9,2.7096]
[1693840151986,2.96976383,1625.5,1624.9,2.7096]
[1693840152190,2.96976383,1625.7,1625.1,0.03023617]
[1693840152348,0.92284976,1625.3,1625.1,0.03023617]
[1693840152689,0.92284976,1625.3,1624.9,2.73983617]
[1693840153302,0.92284976,1625.3,1623.9,3.552]
[1693840153303,6.03677809,1625.2,1624.4,0.03023617]
[1693840153451,6.03677809,1625.2,1624.2,0.03023617]
[1693840153452,6.03677809,1624.8,1624.2,0.03023617]
[1693840153778,6.03677809,1624.8,1624.3,0.03023617]
[1693840154082,3.48,1624.7,1624.5,0.03023617]
[1693840154576,2.96976383,1624.9,1624.5,0.03023617]
[1693840154577,3.0,1624.8,1624.5,0.03023617]
[1693840155147,0.92319055,1624.7,1624.5,0.03023617]
[1693840155550,0.92319055,1624.7,1624.3,0.03023617]
[1693840155551,0.48,1624.6,1624.3,0.03023617]
[1693840155773,3.48,1624.6,1624.3,0.03023617]
[1693840155956,0.92319055,1624.7,1624.3,0.03023617]
[1693840156873,3.99020481,1624.7,1624.3,0.03023617]
[1693840157173,3.48,1624.6,1624.3,0.03023617]
[1693840157366,3.0,1624.6,1624.3,0.03023617]
[1693840157567,3.92319055,1624.7,1624.3,0.03023617]
[1693840157780,6.99020481,1624.7,1624.3,0.03023617]
[1693840158196,0.43,1624.6,1624.3,0.03023617]
[1693840158962,3.92319055,1624.7,1624.3,0.03023617]
[1693840159372,3.06701426,1624.6,1624.3,0.03023617]
[1693840159574,3.06701426,1624.6,1624.0,2.5311]
[1693840159575,3.0,1624.5,1624.2,0.03023617]
[1693840159856,2.96976383,1624.3,1624.0,2.5311]
[1693840160172,2.96976383,1624.3,1623.7,0.03723617]
[1693840160173,3.62360815,1624.2,1623.7,0.03723617]
[1693840160376,6.54701426,1624.2,1623.7,0.03723617]
[1693840160968,6.54701426,1624.2,1623.7,0.007]
[1693840161170,3.52635772,1624.1,1623.7,0.007]
[1693840161485,6.61901426,1623.8,1623.7,0.007]
[1693840161797,6.61901426,1623.8,1622.9,0.03023617]
[1693840161798,2.96976383,1623.6,1622.9,0.03023617]
[1693840161961,0.92404361,1623.2,1622.6,2.5431]
[1693840162293,3.06701426,1623.1,1622.7,0.03023617]
[1693840162464,3.0,1623.0,1622.5,0.03023617]
[1693840162659,0.92404361,1623.2,1623.1,0.03023617]
[1693840162862,0.87404361,1623.2,1623.1,0.03023617]
[1693840163390,6.0,1624.0,1623.0,1.64268312]
[1693840163593,0.92381598,1623.6,1623.0,4.64268312]
[1693840163769,0.92381598,1623.6,1623.2,3.552]
[1693840164097,0.24331598,1623.6,1623.3,6.61450545]
[1693840164260,0.4871207,1624.4,1623.5,3.0]
[1693840164581,0.92353158,1624.1,1623.5,3.0]
[1693840164773,0.92353158,1624.1,1623.5,3.61450545]
[1693840165502,0.92353158,1624.1,1623.9,3.0]
[1693840165795,3.0,1625.1,1623.7,3.0]
[1693840165796,3.92319055,1624.7,1623.7,3.0]
[1693840166005,6.15536,1624.6,1624.0,6.15763]
[1693840166184,12.31072,1624.6,1624.0,6.15763]
[1693840166364,0.92341788,1624.3,1624.0,6.15763]
[1693840166571,0.92341788,1624.3,1623.9,6.15772]
[1693840166990,0.92341788,1624.3,1623.9,15.38274426]
[1693840167191,6.15593,1624.5,1624.0,7.69563443]
[1693840167390,7.0792342,1624.5,1624.0,7.69563443]
[1693840168001,6.15593,1624.5,1624.0,7.69563443]
[1693840168194,3.0,1624.4,1624.0,7.69563443]
[1693840168394,13.23439737,1624.6,1624.0,7.69563443]
[1693840168395,0.92324737,1624.6,1624.0,7.69563443]
[1693840168595,0.92324737,1624.6,1624.1,3.8365777]
[1693840168804,0.92324737,1624.6,1624.2,12.31336]
[1693840169107,0.92324737,1624.6,1624.4,6.15611]
[1693840169620,0.63254918,1624.5,1624.4,12.31222]
[1693840170121,0.63254918,1624.5,1624.4,6.15611]
[1693840170406,3.38577812,1624.9,1624.7,3.0]
[1693840170608,0.92308512,1624.9,1624.7,6.06701426]
[1693840170766,0.92308512,1624.9,1624.8,15.37621426]
[1693840170969,6.15203,1625.5,1624.8,21.53081426]
[1693840171191,7.07476622,1625.5,1624.8,23.68389569]
[1693840171422,7.07476622,1625.5,1624.7,6.15493]
[1693840171423,3.0,1625.4,1624.7,6.15493]
[1693840171624,18.45964,1625.2,1624.6,8.79725]
[1693840171806,6.1539,1625.0,1624.6,2.6421]
[1693840172000,9.15439,1624.9,1624.6,2.6421]
[1693840172506,10.07746692,1624.9,1624.6,2.6421]
[1693840172702,16.23185692,1624.9,1624.6,2.6421]
[1693840173009,25.45326118,1624.9,1624.1,6.92663344]
[1693840173173,0.92307692,1624.9,1624.6,12.31071]
[1693840173371,0.92307692,1624.9,1624.6,13.541781]
[1693840173694,12.30656,1625.2,1624.6,13.541781]
[1693840173695,2.462471,1625.0,1624.6,13.541781]
[1693840173896,13.22941654,1625.2,1624.6,13.541781]
[1693840174078,7.07615654,1625.2,1624.6,13.541781]
[1693840174801,0.55239289,1625.1,1624.6,13.541781]
[1693840175003,0.55239289,1625.1,1624.7,3.06701426]
[1693840175309,0.55239289,1625.1,1624.8,6.15452]
[1693840175625,25.52218857,1625.2,1624.8,15.37613426]
[1693840176118,24.69928203,1625.2,1624.8,15.37613426]
[1693840176332,24.69928203,1625.2,1624.8,12.30912]
[1693840176528,3.0,1625.1,1624.7,6.15475]
[1693840176880,3.0,1625.1,1624.7,12.30973]
[1693840177073,3.0,1625.1,1624.7,15.37674426]
[1693840178405,3.0,1625.1,1624.7,12.30973]
[1693840178837,3.0,1625.1,1624.7,6.15489]
[1693840178991,3.0,1625.1,1624.7,12.30987]
[1693840179408,3.0,1625.1,1624.7,15.37688426]
[1693840179620,27.16167803,1625.2,1624.8,3.06701426]
[1693840179877,0.92279299,1625.4,1624.9,12.30828]
[1693840180122,0.92279299,1625.4,1624.9,20.61547343]
[1693840180283,6.1521,1625.5,1624.9,20.61547343]
[1693840180696,14.766158,1625.5,1624.9,14.46125343]
[1693840180899,2.461858,1625.5,1625.0,3.06701426]
[1693840181119,7.07386498,1625.7,1625.1,18.45983]
[1693840181120,0.92262498,1625.7,1625.1,18.45983]
[1693840181317,7.07387498,1625.7,1625.1,23.67952869]
[1693840181513,22.44338924,1625.7,1625.0,6.15361]
[1693840181724,22.99998313,1625.7,1625.0,6.15361]
[1693840181918,22.99998313,1625.7,1625.0,12.30745]
[1693840182285,3.0,1625.6,1625.0,12.30745]
[1693840182482,9.15177,1625.6,1625.0,12.30745]
[1693840182717,0.92273622,1625.5,1625.0,12.30745]
[1693840182898,0.92273622,1625.5,1625.0,21.52830426]
[1693840183103,9.15191,1625.6,1625.0,21.52830426]
[1693840183303,15.30382,1625.6,1625.0,21.52830426]
[1693840183487,15.30382,1625.6,1625.0,15.37446426]
[1693840183699,15.30382,1625.6,1625.0,17.12720803]
[1693840183916,3.0,1625.6,1625.0,23.28104803]
[1693840184446,10.07389271,1625.7,1625.0,23.28104803]
[1693840184726,16.22542271,1625.7,1625.0,23.28104803]
[1693840184916,10.07389271,1625.7,1625.2,12.30565]
[1693840185086,3.92262271,1625.7,1625.2,15.37266426]
[1693840185892,6.06701426,1625.6,1624.9,8.30684343]
[1693840186122,12.30496,1625.4,1624.8,2.5292]
[1693840186288,6.15178,1625.6,1624.8,17.90541426]
[1693840186491,0.48,1625.5,1624.8,24.06001426]
[1693840186746,6.15209,1625.5,1624.9,3.06701426]
[1693840186890,6.15178,1625.6,1624.9,5.77301569]
[1693840187211,6.15178,1625.6,1624.8,2.5292]
[1693840187212,18.45822,1625.3,1624.8,2.5292]
[1693840187524,18.45822,1625.3,1624.8,8.68375]
[1693840187525,6.15274,1625.3,1624.8,8.68375]
[1693840187688,3.0,1625.2,1624.8,14.83835]
[1693840188125,21.45925,1625.2,1624.8,2.5292]
[1693840188426,3.98975048,1625.5,1624.8,20.99298]
[1693840188601,3.48,1625.4,1624.8,20.99298]
[1693840188797,3.0,1625.4,1625.0,12.30749]
[1693840189148,3.0,1625.4,1624.9,12.30797]
[1693840189149,15.30466,1625.4,1624.9,12.30797]
[1693840189832,3.54426834,1625.3,1624.5,0.63671788]
[1693840190139,18.46083,1625.1,1624.5,8.60014]
[1693840190341,0.48,1625.0,1624.5,8.60014]
[1693840190490,12.30722,1625.1,1624.5,16.3600129]
[1693840190695,12.30722,1625.1,1624.5,17.38054844]
[1693840190907,9.63326,1625.2,1624.5,24.17300632]
[1693840191389,9.63326,1625.2,1624.5,25.77713922]
[1693840191590,9.63326,1625.2,1624.5,26.21948504]
[1693840191591,6.1535,1625.1,1624.5,26.21948504]
[1693840192191,6.1535,1625.1,1624.5,16.99673078]
[1693840192192,12.307,1625.1,1624.5,16.99673078]
[1693840192403,21.52751426,1625.1,1624.5,8.60019]
[1693840192802,15.37401426,1625.1,1624.5,15.39264788]
[1693840193216,12.30732,1625.1,1624.5,21.54838788]
[1693840193396,6.15351,1625.1,1624.5,24.61540214]
[1693840193597,3.06701426,1625.0,1624.5,9.23690788]
[1693840193797,6.10441,1624.9,1624.5,9.18690788]
[1693840194003,6.15411,1625.0,1624.5,15.34264788]
[1693840194325,9.63314,1625.2,1624.5,21.49838788]
[1693840194525,6.15372,1625.1,1624.5,21.49838788]
[1693840194692,9.63314,1625.2,1624.5,24.56540214]
[1693840194897,6.15349,1625.1,1624.5,26.16953504]
[1693840195212,6.15349,1625.1,1624.6,2.6169535]
[1693840195415,6.15349,1625.1,1624.7,6.15493]
[1693840196094,7.07645333,1625.1,1624.7,6.15493]
[1693840196496,6.15349,1625.1,1624.7,6.15493]
[1693840197104,12.30698,1625.1,1624.5,16.94662078]
[1693840197412,18.46047,1625.1,1624.5,3.03121788]
[1693840197916,18.46047,1625.1,1624.5,21.49822788]
[1693840197917,12.30698,1625.1,1624.5,21.49822788]
[1693840198091,6.15349,1625.1,1624.5,21.49822788]
[1693840198597,3.06701426,1625.0,1624.5,6.79224788]
[1693840198929,3.06701426,1625.0,1624.3,0.63671788]
[1693840198930,2.793,1624.8,1624.3,0.63671788]
[1693840199106,9.63424,1624.9,1624.4,6.15598]
[1693840199310,15.30863,1624.9,1624.4,12.31209]
[1693840199514,18.37564426,1624.9,1624.3,0.63671788]
[1693840199724,2.843,1624.7,1624.2,3.06071788]
[1693840199935,12.3111,1624.6,1624.2,3.06071788]
[1693840200250,12.3111,1624.6,1624.2,2.424]
[1693840200545,12.3111,1624.6,1624.1,8.39808078]
[1693840200546,9.15593,1624.5,1624.1,8.39808078]
[1693840200701,9.15593,1624.5,1624.1,6.79394788]
[1693840200901,3.0,1624.5,1624.1,19.10824788]
[1693840201130,0.92324737,1624.6,1624.1,20.06345735]
[1693840201425,10.07861737,1624.6,1624.2,8.16306574]
[1693840201621,10.07861737,1624.6,1624.2,6.15672]
[1693840201830,10.07861737,1624.6,1624.1,6.79374788]
[1693840201831,16.23398737,1624.6,1624.1,6.79374788]
[1693840202048,3.06701426,1624.5,1624.1,0.63671788]
[1693840202195,3.06701426,1624.5,1623.9,1.59192735]
[1693840202196,6.323,1624.4,1623.9,1.59192735]
[1693840202395,21.53672426,1624.3,1623.9,0.63671788]
[1693840202673,3.323,1624.2,1623.9,0.63671788]
[1693840202946,3.323,1624.2,1623.7,1.59192735]
[1693840202947,3.05725,1624.1,1623.7,1.59192735]
[1693840203160,6.15725,1624.1,1623.8,0.63671788]
[1693840203369,18.47175,1624.1,1623.8,0.63671788]
[1693840203661,6.15801,1623.9,1623.7,0.63671788]
[1693840203867,0.92347473,1624.2,1623.7,20.06810735]
[1693840204163,0.87347473,1624.2,1624.0,0.63671788]
[1693840204407,1.280346,1624.4,1624.0,0.63671788]
[1693840204408,1.280346,1624.4,1624.2,0.83790335]
[1693840204533,0.49938069,1624.9,1624.3,21.53648426]
[1693840204736,6.15403,1625.0,1624.4,2.15364843]
[1693840205056,0.47648191,1624.8,1624.5,12.31089]
[1693840205394,0.47648191,1624.8,1624.5,20.8994952]
[1693840205678,13.71959119,1625.1,1624.5,20.8994952]
[1693840205831,13.71959119,1625.1,1624.5,21.54073449]
[1693840206571,3.0,1625.0,1624.5,21.54073449]
[1693840206796,11.99699,1625.0,1624.5,2.4328652]
[1693840207019,24.30482,1625.0,1624.3,4.82937219]
[1693840207154,27.37183426,1625.0,1624.3,4.18044876]
[1693840207475,12.31027,1624.7,1624.3,3.22523929]
[1693840207837,13.23346055,1624.7,1624.3,2.584]
[1693840208261,19.38863055,1624.7,1624.2,1.47914264]
[1693840208473,9.39001426,1624.6,1624.2,1.47914264]